fUST/lending_fUST_20251116
["ID","MTS","AMOUNT","RATE_DAILY","PERIOD"]
[394095207,1763273438670,-500.0,0.00016872,2]
[394095208,1763273438680,-500.0,0.00016872,2]
[394095209,1763273438690,-500.0,0.00016872,2]
[394095210,1763273438700,-500.0,0.00016872,2]
[394095211,1763273438710,-500.0,0.00016872,2]
[394095212,1763273438720,-500.0,0.00016872,2]
[394095213,1763273438729,-500.0,0.00016872,2]
[394095214,1763273438739,-389.13444546,0.00016872,2]
[394095215,1763273438749,-500.0,0.00016872,2]
[394095216,1763273438758,-500.0,0.00016872,2]
[394095217,1763273438767,-500.0,0.00016872,2]
[394095218,1763273438777,-500.0,0.00016872,2]
[394095219,1763273438786,-500.0,0.00016872,2]
[394095220,1763273438796,-500.0,0.00016872,2]
[394095221,1763273438806,-500.0,0.00016872,2]
[394095222,1763273438816,-500.0,0.00016872,2]
[394095223,1763273438825,-500.0,0.00016872,2]
[394095224,1763273438835,-500.0,0.00016872,2]
[394095225,1763273438845,-500.0,0.00016872,2]
[394095226,1763273438854,-500.0,0.00016872,2]
[394095227,1763273438864,-500.0,0.00016872,2]
[394095228,1763273438873,-450.68821244,0.00016872,2]
[394095229,1763273438883,-291.72376175,0.00016872,2]
[394095230,1763273438893,-500.0,0.00016872,2]
[394095231,1763273438903,-500.0,0.00016872,2]
[394095232,1763273438913,-500.0,0.00016872,2]
[394095233,1763273438923,-500.0,0.00016872,2]
[394095234,1763273438937,-500.0,0.00016872,2]
[394095235,1763273438947,-500.0,0.00016872,2]
[394095236,1763273438956,-500.0,0.00016872,2]
[394095237,1763273438966,-500.0,0.00016872,2]
[394095238,1763273438975,-500.0,0.00016872,2]
[394095239,1763273438984,-500.0,0.00016872,2]
[394095240,1763273438993,-500.0,0.00016872,2]
[394095241,1763273439003,-500.0,0.00016872,2]
[394095242,1763273439013,-500.0,0.00016872,2]
[394095243,1763273439022,-500.0,0.00016872,2]
[394095244,1763273439032,-500.0,0.00016872,2]
[394095245,1763273439041,-500.0,0.00016872,2]
[394095246,1763273439050,-500.0,0.00016872,2]
[394095247,1763273439060,-500.0,0.00016872,2]
[394095248,1763273439069,-407.74644003,0.00016872,2]
[394095249,1763273439082,-92.25355997,0.00016872,2]
[394095250,1763273439091,-500.0,0.00016872,2]
[394095251,1763273439101,-500.0,0.00016872,2]
[394095252,1763273439110,-500.0,0.00016872,2]
[394095253,1763273439119,-500.0,0.00016872,2]
[394095254,1763273439129,-500.0,0.00016872,2]
[394095255,1763273439138,-854.56660753,0.00016872,2]
[394095256,1763273439147,-756.43862812,0.00016872,2]
[394095257,1763273439163,-243.56137188,0.00016872,2]
[394095258,1763273439173,-1000.0,0.00016872,2]
[394095259,1763273439182,-1000.0,0.00016872,2]
[394095260,1763273439192,-1000.0,0.00016872,2]
[394095261,1763273439201,-1000.0,0.00016872,2]
[394095262,1763273439211,-1000.0,0.00016872,2]
[394095263,1763273439220,-1000.0,0.00016872,2]
[394095264,1763273439230,-1000.0,0.00016872,2]
[394095265,1763273439240,-1000.0,0.00016872,2]
[394095266,1763273439249,-1000.0,0.00016872,2]
[394095267,1763273439259,-1000.0,0.00016872,2]
[394095268,1763273439268,-1000.0,0.00016872,2]
[394095269,1763273439277,-1000.0,0.00016872,2]
[394095270,1763273439287,-1000.0,0.00016872,2]
[394095271,1763273439296,-1000.0,0.00016872,2]
[394095272,1763273439306,-1000.0,0.00016872,2]
[394095273,1763273439315,-1000.0,0.00016872,2]
[394095274,1763273439324,-1000.0,0.00016872,2]
[394095275,1763273439333,-1000.0,0.00016872,2]
[394095276,1763273439342,-1000.0,0.00016872,2]
[394095277,1763273439352,-1000.0,0.00016872,2]
[394095278,1763273439361,-900.75178081,0.00016872,2]
[394095279,1763273439370,-6697.97428711,0.00016872,2]
[394095280,1763273439379,-163373.12123338,0.00016873,2]
[394095281,1763273439390,-3037.6040217,0.00016873,2]
[394095282,1763273439401,-7378.37562568,0.00016873,2]
[394095283,1763273439413,-16420.54254362,0.00016873,2]
[394095377,1763273441513,181.44800762,0.00018502,5]
[394095420,1763273443488,-1903.0064339,0.00016872,2]
[394095422,1763273443497,-76.8935661,0.00016872,2]
[394095423,1763273443568,-272.83182917,0.00016872,2]
[394095424,1763273443716,-1553.28103863,0.00016872,2]
[394095425,1763273443725,-700.6427394,0.00016872,2]
[394095426,1763273444024,-1202.3636945,0.00016872,2]
[394095427,1763273444034,-1903.0064339,0.00016872,2]
[394095428,1763273444044,-1903.0064339,0.00016872,2]
[394095429,1763273444053,-1903.0064339,0.00016872,2]
[394095430,1763273444063,-1903.0064339,0.00016872,2]
[394095431,1763273444072,-1903.0064339,0.00016872,2]
[394095432,1763273444081,-1903.0064339,0.00016872,2]
[394095433,1763273444091,-1903.0064339,0.00016872,2]
[394095434,1763273444100,-1196.14724487,0.00016872,2]
[394095435,1763273444111,-706.85918903,0.00016872,2]
[394095436,1763273444120,-1903.0064339,0.00016872,2]
[394095437,1763273444130,-1903.0064339,0.00016872,2]
[394095438,1763273444139,-1903.0064339,0.00016872,2]
[394095439,1763273444149,-1903.0064339,0.00016872,2]
[394095440,1763273444159,-1903.0064339,0.00016872,2]
[394095441,1763273444168,-816.81934147,0.00016872,2]
[394095442,1763273444179,-1086.18709243,0.00016872,2]
[394095443,1763273444188,-1903.0064339,0.00016872,2]
[394095444,1763273444198,-1392.34570412,0.00016872,2]
[394095470,1763273446448,-510.66072978,0.00016872,2]
[394095472,1763273446458,-1042.92928124,0.00016872,2]
[394095479,1763273446511,-860.07715266,0.00016872,2]
[394095481,1763273446520,-551.87641923,0.00016872,2]
[394095483,1763273446531,-1351.13001467,0.00016872,2]
[394095485,1763273446540,-1903.0064339,0.00016872,2]
[394095487,1763273446549,-1903.0064339,0.00016872,2]
[394095489,1763273446559,-1903.0064339,0.00016872,2]
[394095491,1763273446568,-1903.0064339,0.00016872,2]
[394095493,1763273446577,-1903.0064339,0.00016872,2]
[394095495,1763273446586,-1520.23261112,0.00016872,2]
[394095497,1763273446598,-382.77382278,0.00016872,2]
[394095499,1763273446607,-1446.16041842,0.00016872,2]
[394095501,1763273446618,-456.84601548,0.00016872,2]
[394095503,1763273446627,-1903.0064339,0.00016872,2]
[394095505,1763273446636,-1903.0064339,0.00016872,2]
[394095507,1763273446645,-981.32264112,0.00016872,2]
[394095550,1763273449876,5000.0,0.00016872,2]
[394095551,1763273457863,3200.02,0.00016872,2]
[394095552,1763273457884,1799.98,0.00016872,2]
[394095553,1763273462916,300.0,0.00016871,2]
[394095554,1763273473390,-921.68379278,0.00016872,2]
[394095555,1763273473419,-1903.0064339,0.00016872,2]
[394095556,1763273473447,-1903.0064339,0.00016872,2]
[394095557,1763273473475,-1903.0064339,0.00016872,2]
[394095558,1763273473501,-1903.0064339,0.00016872,2]
[394095559,1763273473529,-1903.0064339,0.00016872,2]
[394095560,1763273473557,-1903.0064339,0.00016872,2]
[394095561,1763273473584,-1903.0064339,0.00016872,2]
[394095562,1763273473613,-1903.0064339,0.00016872,2]
[394095563,1763273473641,-1903.0064339,0.00016872,2]
[394095564,1763273473668,-1903.0064339,0.00016872,2]
[394095565,1763273473696,-1903.0064339,0.00016872,2]
[394095566,1763273473723,-1903.0064339,0.00016872,2]
[394095567,1763273473751,-1903.0064339,0.00016872,2]
[394095568,1763273473778,-1903.0064339,0.00016872,2]
[394095569,1763273473807,-1903.0064339,0.00016872,2]
[394095570,1763273473833,-1903.0064339,0.00016872,2]
[394095571,1763273473862,-1903.0064339,0.00016872,2]
[394095572,1763273473890,-1903.0064339,0.00016872,2]
[394095573,1763273473916,-1903.0064339,0.00016872,2]
[394095574,1763273473945,-1903.0064339,0.00016872,2]
[394095575,1763273473973,-1903.0064339,0.00016872,2]
[394095576,1763273474001,-1903.0064339,0.00016872,2]
[394095577,1763273474028,-1903.0064339,0.00016872,2]
[394095578,1763273474055,-1903.0064339,0.00016872,2]
[394095579,1763273474078,-500.0,0.00016872,2]
[394095580,1763273474100,-500.0,0.00016872,2]
[394095581,1763273474124,-500.0,0.00016872,2]
[394095582,1763273474152,-2374.18153393,0.00016872,2]
[394095583,1763273474177,-500.0,0.00016872,2]
[394095584,1763273474202,-500.0,0.00016872,2]
[394095585,1763273474226,-500.0,0.00016872,2]
[394095586,1763273474252,-2374.18153393,0.00016872,2]
[394095587,1763273474277,-500.0,0.00016872,2]
[394095588,1763273474304,-2374.18153393,0.00016872,2]
[394095589,1763273474326,-500.0,0.00016872,2]
[394095590,1763273474351,-500.0,0.00016872,2]
[394095591,1763273474378,-2374.18153393,0.00016872,2]
[394095592,1763273474401,-500.0,0.00016872,2]
[394095593,1763273474427,-2374.18153393,0.00016872,2]
[394095594,1763273474552,-500.0,0.00016872,2]
[394095595,1763273474580,-2374.18153393,0.00016872,2]
[394095596,1763273474607,-2374.18153393,0.00016872,2]
[394095597,1763273474637,-500.0,0.00016872,2]
[394095598,1763273474667,-2374.18153393,0.00016872,2]
[394095599,1763273474692,-500.0,0.00016872,2]
[394095600,1763273474722,-2374.18153393,0.00016872,2]
[394095601,1763273474746,-500.0,0.00016872,2]
[394095602,1763273474770,-500.0,0.00016872,2]
[394095603,1763273474794,-500.0,0.00016872,2]
[394095604,1763273474822,-2374.18153393,0.00016872,2]
[394095605,1763273474846,-500.0,0.00016872,2]
[394095606,1763273474870,-500.0,0.00016872,2]
[394095607,1763273474898,-2374.18153393,0.00016872,2]
[394095608,1763273474921,-500.0,0.00016872,2]
[394095609,1763273474949,-400.0,0.00016872,2]
[394095610,1763273474977,-2374.18153393,0.00016872,2]
[394095611,1763273475004,-2374.18153393,0.00016872,2]
[394095612,1763273475028,-500.0,0.00016872,2]
[394095613,1763273475056,-2374.18153393,0.00016872,2]
[394095614,1763273475079,-500.0,0.00016872,2]
[394095615,1763273475107,-2374.18153393,0.00016872,2]
[394095616,1763273475129,-500.0,0.00016872,2]
[394095617,1763273475155,-2374.18153393,0.00016872,2]
[394095618,1763273475179,-500.0,0.00016872,2]
[394095619,1763273475208,-2374.18153393,0.00016872,2]
[394095620,1763273475230,-500.0,0.00016872,2]
[394095621,1763273475257,-2374.18153393,0.00016872,2]
[394095622,1763273475284,-2374.18153393,0.00016872,2]
[394095623,1763273475307,-500.0,0.00016872,2]
[394095624,1763273475333,-2374.18153393,0.00016872,2]
[394095625,1763273475360,-2374.18153393,0.00016872,2]
[394095626,1763273475383,-500.0,0.00016872,2]
[394095627,1763273475410,-2374.18153393,0.00016872,2]
[394095628,1763273475434,-500.0,0.00016872,2]
[394095629,1763273475461,-2374.18153393,0.00016872,2]
[394095630,1763273475488,-2374.18153393,0.00016872,2]
[394095631,1763273475516,-2374.18153393,0.00016872,2]
[394095632,1763273475544,-2374.18153393,0.00016872,2]
[394095633,1763273475571,-2374.18153393,0.00016872,2]
[394095634,1763273475598,-2374.18153393,0.00016872,2]
[394095635,1763273475734,5000.0,0.00016872,2]
[394095636,1763273476161,-8975.60350686,0.00016873,2]
[394095637,1763273476270,-10000.01,0.00016873,2]
[394095638,1763273476407,-10000.01,0.00016873,2]
[394095639,1763273478812,-10000.01,0.00016873,2]
[394095640,1763273481714,5000.0,0.00016873,2]
[394095641,1763273482405,-10000.01,0.00016873,2]
[394095642,1763273483407,-10000.01,0.00016873,2]
[394095643,1763273483974,-10000.01,0.00016873,2]
[394095644,1763273484840,1848.30049181,0.00016772,2]
[394095645,1763273489153,500.0,0.00016872,2]
[394095646,1763273489185,500.0,0.00016872,2]
[394095647,1763273489215,500.0,0.00016872,2]
[394095648,1763273489248,500.0,0.00016872,2]
[394095649,1763273489283,500.0,0.00016872,2]
[394095650,1763273489329,327.45643074,0.00016872,2]
[394095651,1763273489370,500.0,0.00016872,2]
[394095652,1763273489411,500.0,0.00016872,2]
[394095653,1763273489452,500.0,0.00016872,2]
[394095654,1763273489494,405.54228834,0.00016872,2]
[394095655,1763273489530,500.0,0.00016872,2]
[394095656,1763273489571,500.0,0.00016872,2]
[394095657,1763273489625,500.0,0.00016872,2]
[394095658,1763273489659,500.0,0.00016872,2]
[394095659,1763273489702,500.0,0.00016872,2]
[394095660,1763273489738,500.0,0.00016872,2]
[394095661,1763273489781,500.0,0.00016872,2]
[394095662,1763273489816,500.0,0.00016872,2]
[394095663,1763273489851,500.0,0.00016872,2]
[394095664,1763273489887,203.22701095,0.00016872,2]
[394095665,1763273489928,500.0,0.00016872,2]
[394095666,1763273489967,500.0,0.00016872,2]
[394095667,1763273490006,500.0,0.00016872,2]
[394095668,1763273490045,500.0,0.00016872,2]
[394095669,1763273490087,500.0,0.00016872,2]
[394095670,1763273490122,500.0,0.00016872,2]
[394095671,1763273490159,500.0,0.00016872,2]
[394095672,1763273490192,500.0,0.00016872,2]
[394095673,1763273490221,400.0,0.00016872,2]
[394095674,1763273490384,500.0,0.00016872,2]
[394095675,1763273491245,500.0,0.00016872,2]
[394095676,1763273497638,5000.0,0.00016873,2]
[394095677,1763273501875,279085.8405413,0.00016871,2]
[394095678,1763273503258,187.25,0.0001,2]
[394095679,1763273506157,3780.63722533,0.00016873,2]
[394095680,1763273508496,500.0,0.00016872,2]
[394095681,1763273508526,500.0,0.00016872,2]
[394095682,1763273508556,500.0,0.00016872,2]
[394095683,1763273508708,500.0,0.00016872,2]
[394095684,1763273508817,500.0,0.00016872,2]
[394095685,1763273508848,500.0,0.00016872,2]
[394095686,1763273508877,500.0,0.00016872,2]
[394095687,1763273514404,500.0,0.00016872,2]
[394095688,1763273514434,500.0,0.00016872,2]
[394095689,1763273514465,500.0,0.00016872,2]
[394095690,1763273514538,500.0,0.00016872,2]
[394095691,1763273514757,500.0,0.00016872,2]
[394095692,1763273514882,500.0,0.00016872,2]
[394095693,1763273514917,500.0,0.00016872,2]
[394095694,1763273515073,500.0,0.00016872,2]
[394095695,1763273515103,500.0,0.00016872,2]
[394095696,1763273515287,568.71753062,0.00016872,2]
[394095697,1763273516350,500.0,0.00016872,2]
[394095698,1763273516380,338.51953393,0.00016872,2]
[394095699,1763273516415,500.0,0.00016872,2]
[394095700,1763273516452,500.0,0.00016872,2]
[394095701,1763273516487,500.0,0.00016872,2]
[394095702,1763273516517,500.0,0.00016872,2]
[394095703,1763273516547,500.0,0.00016872,2]
[394095704,1763273516673,500.0,0.00016872,2]
[394095705,1763273516707,500.0,0.00016872,2]
[394095706,1763273516738,500.0,0.00016872,2]
[394095707,1763273516771,500.0,0.00016872,2]
[394095708,1763273516805,500.0,0.00016872,2]
[394095709,1763273521588,5000.0,0.00016873,2]
[394095710,1763273523253,300.0,0.00016872,2]
[394095711,1763273526006,38583.58779056,0.00016772,2]
[394095712,1763273526035,10000.01,0.00016772,2]
[394095713,1763273526062,10000.01,0.00016772,2]
[394095714,1763273526089,10000.01,0.00016772,2]
[394095715,1763273526117,10000.01,0.00016772,2]
[394095716,1763273526143,10000.01,0.00016772,2]
[394095717,1763273526169,10000.01,0.00016772,2]
[394095718,1763273526196,10000.01,0.00016772,2]
[394095719,1763273526222,10000.01,0.00016772,2]
[394095720,1763273526248,10000.01,0.00016772,2]
[394095721,1763273526274,10000.01,0.00016772,2]
[394095722,1763273545335,5000.0,0.00016772,2]
[394095723,1763273551673,584.82441862,0.00016771,2]
[394095724,1763273551701,249.11927452,0.00016771,2]
[394095725,1763273551730,314.75800728,0.00016771,2]
[394095726,1763273553141,500.0,0.00016771,2]
[394095727,1763273553178,500.0,0.00016771,2]
[394095728,1763273553210,500.0,0.00016771,2]
[394095729,1763273553242,500.0,0.00016771,2]
[394095730,1763273553271,500.0,0.00016771,2]
[394095731,1763273553301,500.0,0.00016771,2]
[394095732,1763273553336,500.0,0.00016771,2]
[394095733,1763273553369,500.0,0.00016771,2]
[394095734,1763273553402,201.17136537,0.00016771,2]
[394095735,1763273553435,500.0,0.00016771,2]
[394095736,1763273553464,500.0,0.00016771,2]
[394095737,1763273553497,439.76133067,0.00016771,2]
[394095738,1763273553530,485.33241944,0.00016771,2]
[394095739,1763273553561,500.0,0.00016771,2]
[394095740,1763273553591,500.0,0.00016771,2]
[394095741,1763273553623,500.0,0.00016771,2]
[394095742,1763273553664,500.0,0.00016771,2]
[394095743,1763273553704,500.0,0.00016771,2]
[394095744,1763273553735,225.0431841,0.00016771,2]
[394095745,1763273553763,102.81106173,0.00016771,2]
[394095746,1763273553795,500.0,0.00016771,2]
[394095747,1763273553830,500.0,0.00016771,2]
[394095748,1763273553868,500.0,0.00016771,2]
[394095749,1763273553904,500.0,0.00016771,2]
[394095750,1763273553949,500.0,0.00016771,2]
[394095751,1763273553992,500.0,0.00016771,2]
[394095752,1763273554033,500.0,0.00016771,2]
[394095753,1763273554068,500.0,0.00016771,2]
[394095754,1763273554107,500.0,0.00016771,2]
[394095755,1763273554145,500.0,0.00016771,2]
[394095756,1763273554175,500.0,0.00016771,2]
[394095757,1763273554211,500.0,0.00016771,2]
[394095758,1763273554246,500.0,0.00016771,2]
[394095759,1763273554279,500.0,0.00016771,2]
[394095760,1763273554313,450.45222942,0.00016771,2]
[394095761,1763273554348,500.0,0.00016771,2]
[394095762,1763273554379,500.0,0.00016771,2]
[394095763,1763273554413,500.0,0.00016771,2]
[394095764,1763273554448,500.0,0.00016771,2]
[394095765,1763273554493,446.74670885,0.00016771,2]
[394095766,1763273554516,53.25329115,0.00016771,2]
[394095767,1763273554557,500.0,0.00016771,2]
[394095768,1763273554588,500.0,0.00016771,2]
[394095769,1763273554622,500.0,0.00016771,2]
[394095770,1763273554659,500.0,0.00016771,2]
[394095771,1763273554689,500.0,0.00016771,2]
[394095772,1763273554737,500.0,0.00016771,2]
[394095773,1763273554775,500.0,0.00016771,2]
[394095774,1763273554818,500.0,0.00016771,2]
[394095775,1763273554947,500.0,0.00016771,2]
[394095776,1763273554987,414.67753715,0.00016771,2]
[394095777,1763273555026,500.0,0.00016771,2]
[394095778,1763273555071,500.0,0.00016771,2]
[394095779,1763273555109,500.0,0.00016771,2]
[394095780,1763273555158,500.0,0.00016771,2]
[394095781,1763273555195,500.0,0.00016771,2]
[394095782,1763273555232,500.0,0.00016771,2]
[394095783,1763273555281,500.0,0.00016771,2]
[394095784,1763273555322,500.0,0.00016771,2]
[394095785,1763273555357,500.0,0.00016771,2]
[394095786,1763273555402,500.0,0.00016771,2]
[394095787,1763273555450,32.0791717,0.00016771,2]
[394095788,1763273555478,467.9208283,0.00016771,2]
[394095789,1763273555516,500.0,0.00016771,2]
[394095790,1763273555560,500.0,0.00016771,2]
[394095791,1763273555593,500.0,0.00016771,2]
[394095792,1763273555634,500.0,0.00016771,2]
[394095793,1763273555701,500.0,0.00016771,2]
[394095794,1763273555740,500.0,0.00016771,2]
[394095795,1763273555779,500.0,0.00016771,2]
[394095796,1763273555817,500.0,0.00016771,2]
[394095797,1763273555879,500.0,0.00016771,2]
[394095798,1763273576131,5000.0,0.00016432,2]
[394095799,1763273579455,259.42241681,0.00018502,5]
[394095801,1763273636599,654.53019,0.00013699,2]
[394095802,1763273738605,-699.57416286,0.00016273,2]
[394095803,1763273738635,-174.33284759,0.00016355,2]
[394095804,1763273738663,-699.57416286,0.00016437,2]
[394095805,1763273738691,-206.48039651,0.00016504,2]
[394095806,1763273738720,-5000.0,0.00016604,2]
[394095807,1763273738749,-300.0,0.00016769,2]
[394095808,1763273738777,-1200.0,0.00016769,2]
[394095809,1763273738805,-48125.65759735,0.00016771,2]
[394095810,1763273738832,-1200.0,0.00016771,2]
[394095811,1763273738862,-751416.31220944,0.00016772,2]
[394095812,1763273739009,-298.8837198,0.00016773,2]
[394095813,1763273741490,5000.0,0.00015993,2]
[394095814,1763273749392,519.78861181,0.000168,2]
[394095815,1763273749888,150.08236717,0.00016009,2]
[394095816,1763273764652,5000.0,0.000168,2]
[394095817,1763273786522,1004.86308962,0.000168,2]
[394095818,1763273787817,5000.0,0.000168,2]
[394095819,1763273810180,5000.0,0.000168,2]
[394095820,1763273832807,5000.0,0.000168,2]
[394095821,1763273855332,5000.0,0.000168,2]
[394095822,1763273865564,159004.45083499,0.00016672,2]
[394095823,1763274020302,-1200.0,0.00016504,2]
[394095824,1763274020326,-802.0,0.00016504,2]
[394095825,1763274020350,-300.0,0.0001667,2]
[394095826,1763274020373,-1200.0,0.0001667,2]
[394095827,1763274020396,-1200.0,0.00016671,2]
[394095828,1763274020421,-174.38349217,0.00016671,2]
[394095829,1763274020444,-409.37709304,0.00016671,2]
[394095830,1763274020467,-220.33060509,0.00016671,2]
[394095831,1763274020490,-500.0,0.00016671,2]
[394095832,1763274020513,-408.60094783,0.00016671,2]
[394095833,1763274020540,-500.0,0.00016671,2]
[394095834,1763274020564,-500.0,0.00016671,2]
[394095835,1763274020587,-500.0,0.00016671,2]
[394095836,1763274020612,-180.81057047,0.00016671,2]
[394095837,1763274020645,-500.0,0.00016671,2]
[394095838,1763274020677,-500.0,0.00016671,2]
[394095839,1763274020713,-500.0,0.00016671,2]
[394095840,1763274020744,-500.0,0.00016671,2]
[394095841,1763274020776,-500.0,0.00016671,2]
[394095842,1763274020808,-500.0,0.00016671,2]
[394095843,1763274020844,-500.0,0.00016671,2]
[394095844,1763274020877,-500.0,0.00016671,2]
[394095845,1763274020911,-500.0,0.00016671,2]
[394095846,1763274020949,-316.46775372,0.00016671,2]
[394095847,1763274020980,-500.0,0.00016671,2]
[394095848,1763274021007,-500.0,0.00016671,2]
[394095849,1763274021040,-500.0,0.00016671,2]
[394095850,1763274021071,-500.0,0.00016671,2]
[394095851,1763274021107,-500.0,0.00016671,2]
[394095852,1763274021140,-500.0,0.00016671,2]
[394095853,1763274021173,-500.0,0.00016671,2]
[394095854,1763274021205,-500.0,0.00016671,2]
[394095855,1763274021244,-500.0,0.00016671,2]
[394095856,1763274021274,-500.0,0.00016671,2]
[394095857,1763274021305,-500.0,0.00016671,2]
[394095858,1763274021334,-500.0,0.00016671,2]
[394095859,1763274021359,-500.0,0.00016671,2]
[394095860,1763274021392,-500.0,0.00016671,2]
[394095861,1763274021422,-500.0,0.00016671,2]
[394095862,1763274021455,-500.0,0.00016671,2]
[394095863,1763274021486,-500.0,0.00016671,2]
[394095864,1763274021516,-500.0,0.00016671,2]
[394095865,1763274021544,-185.65585978,0.00016671,2]
[394095866,1763274021574,-500.0,0.00016671,2]
[394095867,1763274021605,-500.0,0.00016671,2]
[394095868,1763274021635,-500.0,0.00016671,2]
[394095869,1763274021667,-500.0,0.00016671,2]
[394095870,1763274021697,-730995.54916501,0.00016672,2]
[394095871,1763274021724,-500.0,0.00016673,2]
[394095872,1763274021751,-500.0,0.00016673,2]
[394095873,1763274232415,-394.06593019,0.00015938,2]
[394095874,1763274234574,-800.0052936,0.00015938,2]
[394095875,1763274238130,-695.71082835,0.00015938,2]
[394095876,1763274239574,-764.28182085,0.00015938,2]
[394095877,1763274241582,-383.49920011,0.00015938,2]
[394095878,1763274246134,-500.0,0.00015938,2]
[394095879,1763274247160,168.780195,0.00030137,120]
[394095880,1763274310234,5600.0,0.00032877,120]
[394095886,1763274519747,9583.86928314,0.00014,2]
[394095889,1763274541208,150.0,0.00032876,120]
[394095890,1763274565137,-170.84619064,0.00016019,2]
[394095891,1763274565157,-3563.3347756,0.00016099,2]
[394095892,1763274624100,179.60918492,0.00016294,2]
[394095917,1763274632439,-3570.60340927,0.00016294,2]
[394095918,1763274632449,-3750.21259419,0.00016459,2]
[394095919,1763274632459,-2107.26152849,0.0001658,2]
[394095920,1763274632469,-500.0,0.00016671,2]
[394095921,1763274632479,-358.4,0.00016671,2]
[394095922,1763274632489,-300.0,0.00016768,2]
[394095923,1763274632498,-1200.0,0.00016768,2]
[394095924,1763274632507,-500.0,0.00016769,2]
[394095925,1763274632517,-500.0,0.00016769,2]
[394095926,1763274632527,-622.65119804,0.0001677,2]
[394095927,1763274632536,-500.0,0.0001677,2]
[394095928,1763274632545,-503.89413773,0.0001677,2]
[394095929,1763274632555,-2038.49969287,0.00017101,2]
[394095930,1763274632569,-2790.70592363,0.00017101,2]
[394095931,1763274632579,-500.0,0.00017105,2]
[394095932,1763274632588,-154.03618832,0.00017169,2]
[394095933,1763274632599,-734.71396307,0.00017169,2]
[394095934,1763274632608,-2344.46233292,0.00017169,2]
[394095935,1763274632618,-676.0,0.00017186,2]
[394095936,1763274632628,-464.53450783,0.00017227,2]
[394095937,1763274632637,-291.93960609,0.00017227,2]
[394095938,1763274632647,-500.0,0.00017227,2]
[394095939,1763274632657,-500.0,0.00017227,2]
[394095940,1763274632666,-424.05197263,0.00017227,2]
[394095941,1763274632675,-631.73953998,0.00017227,2]
[394095942,1763274632684,-500.0,0.00017227,2]
[394095943,1763274632694,-641.29805404,0.00017227,2]
[394095944,1763274632703,-500.0,0.00017227,2]
[394095945,1763274632712,-152.65194596,0.00017227,2]
[394095946,1763274632721,-252.75461812,0.00017227,2]
[394095947,1763274632733,-247.24538188,0.00017227,2]
[394095948,1763274632742,-67.33887882,0.00017227,2]
[394095949,1763274632753,-337.73889485,0.00017227,2]
[394095950,1763274632764,-94.92222633,0.00017227,2]
[394095951,1763274632774,-500.0,0.00017227,2]
[394095952,1763274632783,-500.0,0.00017227,2]
[394095953,1763274632792,-436.25,0.00017227,2]
[394095954,1763274632801,-76504.2787425,0.00017228,2]
[394095955,1763274632812,-956.23404994,0.00017228,2]
[394095956,1763274632829,-154.23142357,0.00017227,2]
[394095957,1763274632838,-960.49554624,0.00017228,2]
[394095958,1763274632850,-184595.17543004,0.00017228,2]
[394095961,1763274638371,-286.56396512,0.00017227,2]
[394095962,1763274638384,-3253.70513629,0.00017228,2]
[394095963,1763274638397,-1261.35,0.00017228,2]
[394095964,1763274638410,-3710.6098573,0.00017228,2]